{"text_format":"1","workbook":"xlsx","n_sheets":2,"sheets":["boussole","Total"],"not_rendered":{"charts":0,"images":0,"macros":1,"external_links":0,"defined_names":0,"comments":0,"pivot_tables":0},"unopened":[],"bounds":{"document_bytes":16777216,"sheet_cells":100000,"rows_first":2000,"rows_last":500,"rows_between":2000,"halvings":0,"cell_chars":16384,"cell_head_chars":4096},"cells_cut":0,"cells_raw":0,"read":"whole","date_system":"1900"}

{"sheet":"boussole","index":0,"n_rows":24,"n_cols":14,"rows_kept":24,"cut":false,"hidden":false,"merged":[]}
[null,null,null,null,null,null,null,null,null,null,null,null,"اللقب والإسم","عدد الوجبات"]
[]
[]
[]
[]
[]
[]
[]
[]
[]
[]
[]
[]
[]
[]
[]
[]
[]
[]
[]
[]
[null,null,null,null,null,null,null,null,null,null,null,"مسح هذين الخليتين بعد الترحيل"]
[null,null,null,null,null,null,null,null,null,null,null,null,"M2"]
[null,null,null,null,null,null,null,null,null,null,null,null,"N2"]

{"sheet":"Total","index":1,"n_rows":49,"n_cols":22,"rows_kept":49,"cut":false,"hidden":false,"merged":[]}
[]
[]
[]
[]
[]
[]
["الرقم","اللقب و الإسم","عدد الوجبات","المبلغ ","المبلغ الإجمالي"]
[1,"أيوب",50,100,{"$f":"C8*D8","v":5000},null,null,null,null,null,null,null,null,null,null,null,null,null,null,null,null,""]
[2,"عبدالرحمن",20,100,2000]
[3,null,null,100,0]
[4,null,null,100,0]
[5,null,null,100,0]
[6,null,null,100,0]
[7,null,null,100,0]
[8,null,null,100,0]
[9,null,null,100,0]
[10,null,null,100,0]
[11,null,null,100,0]
[12,null,null,100,0]
[13,null,null,100,0]
[14,null,null,100,0]
[15,null,null,100,0]
[16,null,null,100,0]
[17,null,null,100,0]
[18,null,null,100,0]
[19,null,null,100,0]
[20,null,null,100,0]
[21,null,null,100,0]
[22,null,null,100,0]
[23,null,null,100,0]
[24,null,null,100,0]
[25,null,null,100,0]
[26,null,null,100,0]
[27,null,null,100,0]
[28,null,null,100,0]
[29,null,null,100,0]
[30,null,null,100,0]
[31,null,null,100,0]
[32,null,null,100,0]
[33,null,null,100,0]
[34,null,null,100,0]
[35,null,null,100,0]
[36,null,null,100,0]
[37,null,null,100,0]
[38,null,null,100,0]
[39,null,null,100,0]
[40,null,null,100,0]
[41,null,null,100,0]
[null,null,null,"مج",{"$f":"SUM(E8:E48)","v":7000}]